Cogmind - Beta 16.1 @@@ ROGUE MODE // 2026.02.28 @ 20:19:29 Player: Kakograf Result: Self-destructed Performance ------------- Evolutions (1) 500 Regions Visited (2) 400 Robots Destroyed (15) 75 Value Destroyed (372) 372 Prototype IDs (0) 0 Alien Tech Used (0) 0 Bonus (0) 0 TOTAL SCORE: 1347 Bonus ------- None Cogmind --------- Core Integrity 351/400 Matter 288/300 Energy 77/100 System Corruption 0% Temperature Cool (15) Movement Flying (34) Location -9/Materials Parts ------- > --- POWER (1) -------- (None) > --- PROPULSION (3) --- Flight Unit Flight Unit Flight Unit > --- UTILITY (3) ------ Small Storage Unit > --- WEAPON (2) ------- Medium Laser Light Assault Rifle > --- INVENTORY (8) ---- Aluminum Leg Improved Heat Sink Sensor Array Light Assault Rifle Mining Claw Peak State ------------ > --- POWER ------------ Subdweller Power Source > --- PROPULSION ------- Aluminum Leg Aluminum Leg > --- UTILITY ---------- Small Storage Unit Sensor Array > --- WEAPON ----------- Medium Laser Medium Laser > --- INVENTORY -------- Light Ion Engine Aluminum Leg Aluminum Leg Improved Heat Sink Sensor Array Light Assault Rifle Light Assault Rifle Mining Claw [Rating: 9] Favorites ----------- Power Ion Engine Engine Ion Engine Propulsion Aluminum Leg Leg Aluminum Leg Flight Unit Flight Unit Utility Sensor Array Device Sensor Array Storage Small Storage Unit Weapon Medium Laser Energy Gun Medium Laser Ballistic Gun Light Assault Rifle Slashing Weapon Mining Claw Build | -11 -10 -9 ------- Run | Yrd Mat Mat Slots Evolved 2 | . . 2 Power . | . . . Propulsion 1 | . . 1 Utility 1 | . . 1 Weapon . | . . . Parts Attached 17 | 5 4 8 Power 3 | 1 1 1 Engine 3 | 1 1 1 Core . | . . . Reactor . | . . . Propulsion 7 | 2 . 5 Treads . | . . . Leg 4 | 2 . 2 Wheel . | . . . Hover . | . . . Flight 3 | . . 3 Utility 2 | . 2 . Device 1 | . 1 . Storage 1 | . 1 . Processor . | . . . Hackware . | . . . Protection . | . . . Artifact . | . . . Weapon 5 | 2 1 2 Energy Gun 2 | 1 1 . Energy Cannon . | . . . Ballistic Gun 2 | 1 . 1 Ballistic Cannon . | . . . Launcher . | . . . Special Weapon . | . . . Impact Weapon . | . . . Slashing Weapon 1 | . . 1 Piercing Weapon . | . . . Special Melee Weapon . | . . . Unidentified Prototypes . | . . . Parts Lost 8 | . 4 4 Power 3 | . 2 1 Propulsion 3 | . 1 2 Utility 1 | . . 1 Weapon 1 | . 1 . Highest Loss Streak 4 | . 3 4 To Critical Strikes . | . . . Average Backups 5 | 1 5 4 Power . | . 1 . Propulsion 1 | . 1 . Utility . | . . 2 Weapon 1 | . 2 2 Tool/Special . | . . . Unused Backups 7 | . 4 3 Power . | . . . Propulsion 4 | . 4 . Utility 2 | . . 2 Weapon 1 | . . 1 Tool/Special . | . . . Average Slot Usage (%) 86 | . 88 76 Engine 11 | . 11 7 Leg 27 | . 27 23 Device 10 | . 10 6 Storage 8 | . 8 11 Energy Gun 23 | . 25 11 Ballistic Gun 2 | . 2 5 Peak Build Rating 9 | 5 9 8 Average Rating 6 | 4 6 7 On Entrance 3 | . 5 5 Avg Prop Armor Cover (%) 11 | . . 11 Naked Turns . | . . . Heaviest Build 15 | 8 15 13 Greatest Support 30 | 20 20 30 Greatest Overweight (x) 1 | . . 1 Average Overweight (x) . | . . . Largest Inventory Capacity 8 | 5 8 8 Average Capacity 6 | 5 6 8 Most Carried 8 | 3 8 7 Average Carried 5 | 1 5 4 Final Capacity 8 | 5 8 8 Final Carried 8 | 3 8 5 Class Distribution -------------------- 100% | Mutant Dominant Class ---------------- Mutant | -10/Materials Mutant | -9/Materials Resources | -11 -10 -9 ----------- Run | Yrd Mat Mat Matter Collected 365 | 189 110 66 Remotely . | . . . Salvage Created 457 | . 291 166 Parts 34 | . 18 16 Haulers Intercepted . | . . . Recyclers Shooed 2 | . 1 1 Parts Field Recycled . | . . . Retrieved Matter . | . . . Parts Self-Destructed . | . . . Prevented . | . . . Parts Restored . | . . . Kills | -11 -10 -9 ------- Run | Yrd Mat Mat Combat Hostiles Destroyed 14 | . 8 6 Guns 13 | . 7 6 Classes Destroyed 4 | . 3 1 Watcher 1 | . 1 . Swarmer 7 | . 3 4 Grunt 5 | . 5 . Sentry 2 | . . 2 Best Kill Streak 4 | . 3 4 Combat Bots Only 4 | . 3 4 Max Kills in Single Turn 2 | . 1 2 Gunslinging 1 | . . 1 Exploded . | . . . Melee . | . . . Uniques/NPCs Destroyed . | . . . Combat | -11 -10 -9 -------- Run | Yrd Mat Mat Hostile Shots Fired 99 | . 52 47 Missed 29 | . 12 17 Hits 70 | . 40 30 Projectile 70 | . 40 30 AOE 3 | . 3 . Critical Strikes 2 | . . 2 Damage Taken 906 | . 557 349 Core 180 | . 131 49 Absorbed by Shields . | . . . Core Remaining (%) 73 | 100 47 . Volleys Fired 47 | . 29 18 Largest 2 | . 2 2 Hottest 100 | . 100 70 Shots Fired 94 | . 58 36 Gun 94 | . 58 36 Cannon . | . . . Launcher . | . . . Special . | . . . Kinetic 30 | . 12 18 Thermal 64 | . 46 18 Explosive . | . . . Electromagnetic . | . . . Robot Hit Streak 11 | . 11 6 Robot Miss Streak 5 | . 2 5 Penetration Max . | . . . Secondary Targets 5 | . 3 2 Max Gunslinging Chain 1 | . 1 1 Shots Hit Robots 65 | . 43 22 Core Hits 25 | . 17 8 Critical Kills . | . . . Critical Parts Destroyed . | . . . Critical Strikes 5 | . 5 . Burn 5 | . 5 . Melee Attacks . | . . . Impact . | . . . Slashing . | . . . Piercing . | . . . Sneak Attacks . | . . . Combat Hostiles . | . . . Follow-up Attacks . | . . . Damage Inflicted 759 | . 517 242 Guns 753 | . 511 242 Cannons . | . . . Explosions . | . . . Melee . | . . . Ramming 6 | . 6 . Kinetic 140 | . 58 82 Thermal 613 | . 453 160 Explosive . | . . . Electromagnetic . | . . . Impact . | . . . Slashing . | . . . Piercing . | . . . Highest Corruption . | . . . Average Corruption . | . . . Corruption Purged . | . . . Corruption Blocked . | . . . Overload Shots . | . . . Overflow Damage . | . . . Projectiles . | . . . Explosions . | . . . Melee . | . . . Knockbacks . | . . . Impact . | . . . Kinetic . | . . . Secondary . | . . . Self-Inflicted Damage . | . . . Shots . | . . . Rammed . | . . . Targets Rammed 1 | . 1 . Kicked 1 | . 1 . Crushed . | . . . Highest Temperature 297 | . 297 150 Average Temperature 95 | . 111 54 Received Heat Transfer 270 | . 162 108 Siege Activations . | . . . Martial Activations . | . . . Shielding Activations . | . . . Robots Disrupted . | . . . Combat Hostiles . | . . . Robots Corrupted . | . . . Combat Hostiles . | . . . Parts Fried . | . . . Impact Corruptions . | . . . Robots Melted 1 | . 1 . Combat Hostiles 1 | . 1 . Parts Melted 5 | . 4 1 Heat Transferred 2183 | . 1702 481 Parts Sabotaged . | . . . Parts Stolen . | . . . Parts Stripped . | . . . Power Chain Reactions . | . . . Alert | -11 -10 -9 ------- Run | Yrd Mat Mat Maximum Alert Level . | . . . Low Security (%) 100 | 100 100 100 Level 1 . | . . . Level 2 . | . . . Level 3 . | . . . Level 4 . | . . . Level 5 . | . . . High Security . | . . . Max Security . | . . . Peak Influence 90 | . 75 90 Initial . | . . . Average 21 | . 21 34 Influence Increases 421 | . 261 160 Destroy 0b10 Robot/C 280 | . 160 120 Destroy 0b10 Robot/NC 5 | . 5 . Destroy Leader 82 | . 42 40 Successful Hack 24 | . 24 . Partial Spotted 15 | . 15 . Lose Combat Pursuer 15 | . 15 . Influence Decreases 341 | . 261 80 Time Decay 301 | . 261 40 Lost Part 40 | . . 40 Squads Dispatched 1 | . 1 . Investigation . | . . . Extermination . | . . . Reinforcement 1 | . 1 . Assault . | . . . Garrison . | . . . Intercept . | . . . Searches Triggered . | . . . Construction Impeded . | . . . Haulers Reinforced . | . . . Active Scanning Responses . | . . . Cargo Convoy Interrupts . | . . . Stealth | -11 -10 -9 --------- Run | Yrd Mat Mat Distress Signals 1 | . 1 . Communications Jammed . | . . . Distress Signals . | . . . Times Spotted 25 | . 16 9 Peak Tracking Total 5 | . 5 5 Tactical Retreats 2 | . 2 . Traps | -11 -10 -9 ------- Run | Yrd Mat Mat Traps Triggered . | . . . Indirectly . | . . . Trap Hack Attempts . | . . . Triggered . | . . . Disarmed . | . . . Reprogrammed . | . . . Reused . | . . . Traps Extracted . | . . . Installed . | . . . Triggered . | . . . Machines | -11 -10 -9 ---------- Run | Yrd Mat Mat Machines Disabled . | . . . Max in Single Turn . | . . . Machines Repaired . | . . . Machines Dismantled . | . . . Machines Sabotaged . | . . . Overloaded Fab Kills . | . . . Hacking | -11 -10 -9 --------- Run | Yrd Mat Mat Machines Accessed 4 | . 4 . Terminals 4 | . 4 . Fabricators . | . . . Repair Stations . | . . . Recycling Units . | . . . Scanalyzers . | . . . Garrison Access . | . . . Total Hacks 12 | . 12 . Successful 5 | . 5 . Failed 7 | . 7 . Catastrophic 1 | . 1 . Database Lockouts . | . . . Manual 5 | . 5 . Terminals 12 | . 12 . Fabricators . | . . . Repair Stations . | . . . Recycling Units . | . . . Scanalyzers . | . . . Garrison Access . | . . . Terminal Hacks 5 | . 5 . Unreport Threat 1 | . 1 . Dispatch Records 1 | . 1 . Patrol Status 1 | . 1 . Transport Status 1 | . 1 . Zone Layout 1 | . 1 . Fabricator Hacks . | . . . Repair Station Hacks . | . . . Recycling Unit Hacks . | . . . Scanalyzer . | . . . Garrison Access Hacks . | . . . Unauthorized Hacks . | . . . Terminals . | . . . Fabricators . | . . . Repair Stations . | . . . Recycling Units . | . . . Scanalyzers . | . . . Garrison Access . | . . . Data Cores Recovered . | . . . Used . | . . . Hacking Detections 4 | . 4 . Full Trace Events . | . . . Feedback Events . | . . . Feedback Blocked . | . . . Robot Schematics Acquired . | . . . Robots Built . | . . . Authchips . | . . . Time . | . . . Total Robot Build Rating . | . . . Part Schematics Acquired . | . . . Parts Built . | . . . Authchips . | . . . Time . | . . . Total Part Build Rating . | . . . Part Studies Acquired . | . . . Parts Repaired . | . . . Time . | . . . Parts Recycled . | . . . Recycled Matter . | . . . Retrieved Matter . | . . . Retrieved Components . | . . . Parts Scanalyzed . | . . . Part Schematics Acquired . | . . . Parts Damaged . | . . . Bothacking | -11 -10 -9 ------------ Run | Yrd Mat Mat Used RIF Installer . | . . . Robots Hacked . | . . . Non-combat . | . . . Combat . | . . . Robot Hacks Applied . | . . . Relay Couplers Released . | . . . Fabnet Peak Effective % . | . . . Robots Rewired . | . . . Allies Hacked . | . . . Hacks Repelled . | . . . Allies | -11 -10 -9 -------- Run | Yrd Mat Mat Total Allies . | . . . Largest Group . | . . . Highest-Rated Group . | . . . Highest-Rated Ally . | . . . Total Orders . | . . . Ally Attacks . | . . . Total Damage . | . . . Kills . | . . . Allies Corrupted . | . . . Allies Melted . | . . . Intel | -11 -10 -9 ------- Run | Yrd Mat Mat Active Infowar (turns) 792 | . 706 86 Sensors 792 | . 706 86 Robot Analysis Total . | . . . Derelict Logs Recovered . | . . . Drone Launches . | . . . Drone Recoveries . | . . . Exploration | -11 -10 -9 ------------- Run | Yrd Mat Mat Turns Passed 1080 | 47 893 140 Spaces Moved 714 | 33 594 87 Core 4 | 4 . . Treads . | . . . Legs 672 | 29 594 49 Wheels . | . . . Hover . | . . . Flight 38 | . . 38 Fastest Speed 34 | 50 120 34 Average Speed 115 | 111 120 84 Slowest Speed 130 | 120 120 130 Overloaded Moves . | . . . Propulsion Burnouts . | . . . Robots Hopped . | . . . Potential Cave-ins . | . . . Cave-ins Triggered . | . . . Exploration Rate (%) 33 | 3 86 12 Regions Visited 2 Branch Regions . Pre-discovered Areas . | . . . Known Exits Taken . | . . . Unknown Exits Taken 2 | 1 1 . Scrap Searched . | . . . Spaces Dug . | . . . Terrain Destroyed . | . . . Melee . | . . . Projectile . | . . . AOE . | . . . Terrain Rammed . | . . . Walls Destroyed . | . . . Machines Disabled . | . . . Actions | -11 -10 -9 --------- Run | Yrd Mat Mat Total 878 | 40 719 119 Wait 83 | . 78 5 Move 712 | 32 593 87 Hop . | . . . Pick Up 12 | 3 9 . Fast Attach 12 | 5 4 3 Attach 4 | . . 4 Detach 1 | . . 1 Swap 1 | . . 1 Drop 5 | . 5 . Fire 47 | . 29 18 Melee . | . . . Ram . | . . . Kick 1 | . 1 . Crush . | . . . Escape Stasis . | . . . Rewire . | . . . Trap . | . . . Miscellaneous . | . . . Route ------- -11/Scrapyard -10/Materials (discovered 4 exits: [*Mat x3] / [*Min]) -9/Materials History --------- Turn | Location | Event 24 | -11/Scrapyard | Discovered new exit (range 16) 48 | -11/Scrapyard | Entered Materials 243 | -10/Materials | Discovered new exit (range 16) 313 | -10/Materials | Build established: Mutant 334 | -10/Materials | Discovered new exit (range 8) 487 | -10/Materials | Discovered new exit (range 15) 648 | -10/Materials | Derelicts attacked the area 914 | -10/Materials | Discovered new exit (range 15) 936 | -10/Materials | Core integrity fell below 50% 941 | -10/Materials | Entered another Materials area 941 | -9/Materials | Evolved 2 slots: Propulsion x1, Utility x1 962 | -9/Materials | Lost 3 parts (1p1n1w) 1073 | -9/Materials | Lost 4 parts (1p2n1u) 1081 | -9/Materials | Self-destructed Last Messages --------------- Switching to secondary target: S-10 Pest. S-10 Pest destroyed. Y-45 Defender destroyed. Sensor Array destroyed. Aluminum Leg destroyed. R-06 Scavenger collects Heat Sink. Critical hit (Burn: +37). R-06 Scavenger collects Flight Unit. Lgt. Ion Engine destroyed. Aluminum Leg destroyed. Heat Sink melted. Y-45 Defender destroyed. Acquired 43 matter. Acquired Flight Unit. Acquired 20 matter. R-06 Scavenger collects Flight Unit. R-06 Scavenger collects Lgt. Assault Rifle. Acquired 3 matter. Acquired Flight Unit. S-10 Pest destroyed. Map ----- +----------------------------------------------------+ | ?????????????????????????????????????????????????? | | ?????????????????????????????????????????????????? | | ?????????????????????????????????????????????????? | | ?????????????????????????????????????????????????? | | ?????????????????????????????????????????????????? | | ?????????????????????????????????????????????????? | | ?????????????????????????????????????????????????? | | ?????????????????????????????????????????????????? | | ?????????????????????????????????????????????????? | | ?????????????????????????????????????????????????? | | ?????????????????????????????????????????????????? | | ?????????????????????????????????????????????????? | | ?????????????????????????????????????????????????? | | ?????????????????????????????????????????????????? | | ?????????????????????????????????????????????????? | | ?????????????????????????????????????????????????? | | ?????????????????????????????????????????????????? | | ????????????????????##???????????????????????????? | | ????????????????????# ???????????????????????????? | | ????????????????????# ??????????????????????????? | | ????????????????????# ??????????????????????????? | | ????????????????????# ?????????????????????????? | | ????????????????????? ?????????????????????????? | | ?????????????????????? ????????????????????????# | | ????????????????????####/######################## | | ????????????????????# k@ | | ????????????????????# | | ????????????????????# | | ????????????????????# ss#######+######+########?? | | ????????????????????# [ ????? # #?????# | | ????????????????????#s ???? # """ """ ####### | | ??????????????????? + ?? # """ """ + | | ?????????????????? # ??## # """ """%# | | ?????????????????] # ???# # """ """ #% | | ???????????????]] ?#????# # %/ % | | ???????????????? ???????# [[[ # ! [ ####### | | ???????????????##????????# [[ # =#?????? | | ?????????????????????????# [[ ###########?????? | | ?????????????????????????# #???????????????? | | ?????????????????????????# #???????????????? | | ?????????????????????????#########?????????# # | | ???????????????????????????????????????????# | | ???????????????????????????????????????????# | | ???????????????????????????????????????????# ! | | ???????????????????????????????????????????# # | | ???????????????????????????????????????????###+#?? | | ?????????????????????????????????????????????????? | | ?????????????????????????????????????????????????? | | ?????????????????????????????????????????????????? | | ?????????????????????????????????????????????????? | +----------------------------------------------------+ Best States ------------- Heat Dissipation 28 Energy Generation 15 Energy Capacity 250 Matter Stores 300 Matter Capacity 300 Sight Range 16 Robot Scan Range 14 Terrain Scan Density 10 Evasion (%) 63 Item Schematics ----------------- None Robot Schematics ------------------ None Fabricated ------------ Nothing Repaired ---------- Nothing Studied --------- None Alien Tech Used ----------------- None Achievements -------------- None Challenges ------------ None Game ------ Seed SeismicMicrowarpImmobilizer Manual? 0 Play Time 00:13:49 Cumulative 16.4 hours Start 2026.02.28 @ 20:07:31 End 2026.02.28 @ 20:19:29 Sessions 1 Manual Loads 0 Difficulty Rogue Special Mode None Game No. 22 Rogue 22 Adventurer 0 Explorer 0 Win Type - Total 0 Types 0/0/0/0/0/0/0/0/0/0 Lore% 3 Gallery% 17 Achievement% 14 Wizard Run 0 Options --------- Layout 1 ASCII 0 Keyboard 1 Movement Arrows Keybinds 0 Fullscreen 1 Font 24/Smallcaps Map View 50x35 Zoom Use 0% Tactical HUD 0 Map Filters NONE Filters NONE Steam 1 RUN: a82f0b03-7f7e-4cd1-8a44-3b280d24faea